[Event "Titled Tuesday Blitz August 3 2021"]
[White "Krivonosov, Oleg"]
[Black "Sadykov, Ramil"]
[WhiteFideId "11600349"]
[BlackFideId "24113590"]
[WhiteElo "2469"]
[BlackElo "2300"]
[Result "1-0"]
[Round "09"]
[TimeControl "180+1"]
[Date "2021.08.03"]
[WhiteClock "0:00:10"]
[BlackClock "0:00:01"]

1. Nf3 {[%clk 0:03:00]}  Nf6 {[%clk 0:02:55]} 2. c4 {[%clk 0:03:00]}  e6 {[%clk 0:02:55]} 3. g3 {[%clk 0:02:59]}  d5 {[%clk 0:02:55]} 4. d4 {[%clk 0:02:58]}  Be7 {[%clk 0:02:51]} 5. Bg2 {[%clk 0:02:58]}  O-O {[%clk 0:02:50]} 6. O-O {[%clk 0:02:58]}  dxc4 {[%clk 0:02:46]} 7. Qa4 {[%clk 0:02:58]}  a6 {[%clk 0:02:45]} 8. Qxc4 {[%clk 0:02:57]}  b5 {[%clk 0:02:44]} 9. Qc2 {[%clk 0:02:56]}  Bb7 {[%clk 0:02:39]} 10. Bg5 {[%clk 0:02:57]}  Nbd7 {[%clk 0:02:19]} 11. Bxf6 {[%clk 0:02:56]}  Nxf6 {[%clk 0:02:17]} 12. Nbd2 {[%clk 0:02:56]}  Rc8 {[%clk 0:02:14]} 13. Nb3 {[%clk 0:02:56]}  Be4 {[%clk 0:02:07]} 14. Qc3 {[%clk 0:02:55]}  Qd5 {[%clk 0:02:05]} 15. Rfc1 {[%clk 0:02:48]}  Rfd8 {[%clk 0:02:04]} 16. Nbd2 {[%clk 0:02:36]}  c5 {[%clk 0:01:47]} 17. Nxe4 {[%clk 0:02:28]}  Qxe4 {[%clk 0:01:37]} 18. Qc2 {[%clk 0:02:20]}  cxd4 {[%clk 0:01:03]} 19. Qxc8 {[%clk 0:02:14]}  Rxc8 {[%clk 0:01:04]} 20. Rxc8+ {[%clk 0:02:13]}  Bf8 {[%clk 0:01:04]} 21. Rd1 {[%clk 0:02:01]}  Qxe2 {[%clk 0:00:33]} 22. Rxd4 {[%clk 0:01:57]}  Nd5 {[%clk 0:00:34]} 23. Rd2 {[%clk 0:01:42]}  Qe4 {[%clk 0:00:33]} 24. Rc1 {[%clk 0:01:38]}  g6 {[%clk 0:00:30]} 25. Rcd1 {[%clk 0:01:03]}  Bh6 {[%clk 0:00:21]} 26. Ne1 {[%clk 0:00:53]}  Qb4 {[%clk 0:00:12]} 27. Rc2 {[%clk 0:00:49]}  Nf6 {[%clk 0:00:08]} 28. Bf3 {[%clk 0:00:42]}  Kg7 {[%clk 0:00:06]} 29. Nd3 {[%clk 0:00:38]}  Qa5 {[%clk 0:00:05]} 30. b3 {[%clk 0:00:33]}  Nd5 {[%clk 0:00:05]} 31. Bxd5 {[%clk 0:00:32]}  exd5 {[%clk 0:00:05]} 32. Ne1 {[%clk 0:00:28]}  b4 {[%clk 0:00:04]} 33. Nf3 {[%clk 0:00:27]}  d4 {[%clk 0:00:02]} 34. Kg2 {[%clk 0:00:21]}  Qf5 {[%clk 0:00:02]} 35. Rc4 {[%clk 0:00:20]}  Bg5 {[%clk 0:00:03]} 36. Rcxd4 {[%clk 0:00:17]}  Be7 {[%clk 0:00:03]} 37. Rd5 {[%clk 0:00:16]}  Qc2 {[%clk 0:00:02]} 38. R5d2 {[%clk 0:00:16]}  Qc3 {[%clk 0:00:03]} 39. h4 {[%clk 0:00:16]}  h5 {[%clk 0:00:03]} 40. Re2 {[%clk 0:00:16]}  Bf6 {[%clk 0:00:03]} 41. Rd7 {[%clk 0:00:14]}  a5 {[%clk 0:00:02]} 42. Rd5 {[%clk 0:00:14]}  Qc6 {[%clk 0:00:02]} 43. Rxa5 {[%clk 0:00:12]}  Bc3 {[%clk 0:00:01]} 44. Ra7 {[%clk 0:00:10]}  Kg8 {[%clk 0:00:01]} 45. Ree7 {[%clk 0:00:10]} 1-0


[Site "https://www.chess.com"]

[Event "Titled Tuesday Blitz August 3 2021"]
[White "Krysa, Leandro"]
[Black "Martin Duque, Jesus"]
[WhiteFideId "116807"]
[BlackFideId "2208954"]
[WhiteElo "2490"]
[BlackElo "2224"]
[Result "1/2-1/2"]
[Round "09"]
[TimeControl "180+1"]
[Date "2021.08.03"]
[WhiteClock "0:00:04"]
[BlackClock "0:00:09"]

1. e4 {[%clk 0:03:00]}  c5 {[%clk 0:02:59]} 2. Nf3 {[%clk 0:03:00]}  e6 {[%clk 0:02:59]} 3. c3 {[%clk 0:03:00]}  Nf6 {[%clk 0:02:59]} 4. e5 {[%clk 0:03:00]}  Nd5 {[%clk 0:02:59]} 5. a3 {[%clk 0:03:00]}  b6 {[%clk 0:02:54]} 6. d4 {[%clk 0:02:59]}  cxd4 {[%clk 0:02:55]} 7. cxd4 {[%clk 0:02:59]}  Bb7 {[%clk 0:02:54]} 8. Bd3 {[%clk 0:02:59]}  d6 {[%clk 0:02:52]} 9. O-O {[%clk 0:02:58]}  Nd7 {[%clk 0:02:52]} 10. Qe2 {[%clk 0:02:57]}  dxe5 {[%clk 0:02:47]} 11. dxe5 {[%clk 0:02:57]}  Be7 {[%clk 0:02:45]} 12. Rd1 {[%clk 0:02:52]}  O-O {[%clk 0:02:39]} 13. Qe4 {[%clk 0:02:32]}  g6 {[%clk 0:02:39]} 14. Bh6 {[%clk 0:02:25]}  Nc5 {[%clk 0:02:37]} 15. Qg4 {[%clk 0:02:19]}  Nxd3 {[%clk 0:02:19]} 16. Bxf8 {[%clk 0:02:12]}  Nxf2 {[%clk 0:02:18]} 17. Bxe7 {[%clk 0:02:03]}  Nxg4 {[%clk 0:02:17]} 18. Bxd8 {[%clk 0:02:03]}  Rxd8 {[%clk 0:02:16]} 19. Nc3 {[%clk 0:02:00]}  Nge3 {[%clk 0:02:04]} 20. Nxd5 {[%clk 0:01:59]}  Bxd5 {[%clk 0:02:02]} 21. Rd3 {[%clk 0:01:49]}  Nc4 {[%clk 0:01:53]} 22. b3 {[%clk 0:01:38]}  Na5 {[%clk 0:01:53]} 23. Nd2 {[%clk 0:01:29]}  Rc8 {[%clk 0:01:52]} 24. b4 {[%clk 0:01:24]}  Nc4 {[%clk 0:01:49]} 25. Re1 {[%clk 0:01:06]}  Nxd2 {[%clk 0:01:44]} 26. Rxd2 {[%clk 0:01:06]}  Rc3 {[%clk 0:01:44]} 27. Rf2 {[%clk 0:00:59]}  Rxa3 {[%clk 0:01:39]} 28. Ref1 {[%clk 0:00:59]}  Bc4 {[%clk 0:01:36]} 29. Rd1 {[%clk 0:00:54]}  Rb3 {[%clk 0:01:18]} 30. h3 {[%clk 0:00:46]}  Bd5 {[%clk 0:01:12]} 31. Rdf1 {[%clk 0:00:44]}  Bc4 {[%clk 0:01:10]} 32. Rd1 {[%clk 0:00:43]}  Bd5 {[%clk 0:01:10]} 33. Rd4 {[%clk 0:00:42]}  a5 {[%clk 0:01:03]} 34. bxa5 {[%clk 0:00:41]}  bxa5 {[%clk 0:01:03]} 35. Rdf4 {[%clk 0:00:41]}  Rb7 {[%clk 0:01:03]} 36. Ra4 {[%clk 0:00:39]}  Ra7 {[%clk 0:01:02]} 37. Rb2 {[%clk 0:00:38]}  Bc6 {[%clk 0:01:01]} 38. Rc4 {[%clk 0:00:38]}  Bd5 {[%clk 0:00:58]} 39. Ra4 {[%clk 0:00:34]}  Bc6 {[%clk 0:00:56]} 40. Rc4 {[%clk 0:00:30]}  Bd7 {[%clk 0:00:54]} 41. Ra2 {[%clk 0:00:20]}  a4 {[%clk 0:00:53]} 42. Ra3 {[%clk 0:00:21]}  Rb7 {[%clk 0:00:44]} 43. Rd4 {[%clk 0:00:17]}  Kg7 {[%clk 0:00:41]} 44. Kh2 {[%clk 0:00:16]}  Bc6 {[%clk 0:00:40]} 45. Rc4 {[%clk 0:00:15]}  Rb6 {[%clk 0:00:39]} 46. Rc2 {[%clk 0:00:12]}  g5 {[%clk 0:00:37]} 47. Re2 {[%clk 0:00:11]}  Kg6 {[%clk 0:00:37]} 48. Rf2 {[%clk 0:00:12]}  h5 {[%clk 0:00:36]} 49. h4 {[%clk 0:00:11]}  gxh4 {[%clk 0:00:33]} 50. Rf6+ {[%clk 0:00:11]}  Kg7 {[%clk 0:00:33]} 51. Rf4 {[%clk 0:00:12]}  Rb3 {[%clk 0:00:31]} 52. Rxb3 {[%clk 0:00:09]}  axb3 {[%clk 0:00:31]} 53. Rxh4 {[%clk 0:00:09]}  Bd5 {[%clk 0:00:29]} 54. Kg3 {[%clk 0:00:08]}  Kg6 {[%clk 0:00:27]} 55. Rf4 {[%clk 0:00:07]}  b2 {[%clk 0:00:24]} 56. Rb4 {[%clk 0:00:07]}  Kf5 {[%clk 0:00:23]} 57. Rxb2 {[%clk 0:00:07]}  Kxe5 {[%clk 0:00:23]} 58. Re2+ {[%clk 0:00:07]}  Kf5 {[%clk 0:00:23]} 59. Kh4 {[%clk 0:00:06]}  Kg6 {[%clk 0:00:22]} 60. g3 {[%clk 0:00:05]}  Bf3 {[%clk 0:00:18]} 61. Re3 {[%clk 0:00:06]}  Bg4 {[%clk 0:00:19]} 62. Re5 {[%clk 0:00:06]}  f6 {[%clk 0:00:19]} 63. Ra5 {[%clk 0:00:05]}  e5 {[%clk 0:00:19]} 64. Ra2 {[%clk 0:00:05]}  Kf5 {[%clk 0:00:17]} 65. Rf2+ {[%clk 0:00:04]}  Ke6 {[%clk 0:00:18]} 66. Rxf6+ {[%clk 0:00:04]}  Kxf6 {[%clk 0:00:09]} 1/2-1/2


[Site "https://www.chess.com"]

[Event "Titled Tuesday Blitz August 3 2021"]
[White "Li, Eric"]
[Black "Diaz Perez, Michel Alejandro"]
[WhiteFideId "30939941"]
[BlackFideId "3517179"]
[WhiteElo "1961"]
[BlackElo "2337"]
[Result "0-1"]
[Round "09"]
[TimeControl "180+1"]
[Date "2021.08.03"]
[WhiteClock "0:00:04"]
[BlackClock "0:00:22"]

1. c4 {[%clk 0:03:00]}  Nf6 {[%clk 0:02:58]} 2. Nc3 {[%clk 0:03:00]}  e5 {[%clk 0:02:57]} 3. g3 {[%clk 0:02:59]}  d5 {[%clk 0:02:57]} 4. cxd5 {[%clk 0:02:59]}  Nxd5 {[%clk 0:02:58]} 5. Bg2 {[%clk 0:02:59]}  Nb6 {[%clk 0:02:58]} 6. Nf3 {[%clk 0:02:58]}  Nc6 {[%clk 0:02:59]} 7. O-O {[%clk 0:02:59]}  Be7 {[%clk 0:02:59]} 8. b3 {[%clk 0:02:58]}  O-O {[%clk 0:02:59]} 9. Bb2 {[%clk 0:02:57]}  Re8 {[%clk 0:03:00]} 10. Rc1 {[%clk 0:02:55]}  a5 {[%clk 0:02:59]} 11. Ne4 {[%clk 0:02:54]}  Bf8 {[%clk 0:02:58]} 12. Nc5 {[%clk 0:02:51]}  Bxc5 {[%clk 0:02:48]} 13. Rxc5 {[%clk 0:02:50]}  f6 {[%clk 0:02:44]} 14. d4 {[%clk 0:02:47]}  e4 {[%clk 0:02:35]} 15. Ne1 {[%clk 0:02:28]}  Qd6 {[%clk 0:02:32]} 16. e3 {[%clk 0:01:28]}  a4 {[%clk 0:02:28]} 17. Qc2 {[%clk 0:01:22]}  axb3 {[%clk 0:02:26]} 18. axb3 {[%clk 0:01:19]}  f5 {[%clk 0:02:16]} 19. Qb1 {[%clk 0:01:09]}  Be6 {[%clk 0:02:05]} 20. Nc2 {[%clk 0:00:58]}  Bxb3 {[%clk 0:01:59]} 21. Rxf5 {[%clk 0:00:56]}  Bc4 {[%clk 0:01:40]} 22. Rc1 {[%clk 0:00:44]}  Bd3 {[%clk 0:01:40]} 23. Bf1 {[%clk 0:00:22]}  Bxf1 {[%clk 0:01:32]} 24. Kxf1 {[%clk 0:00:23]}  Qe6 {[%clk 0:01:27]} 25. Rh5 {[%clk 0:00:06]}  Rf8 {[%clk 0:01:22]} 26. Kg1 {[%clk 0:00:06]}  Qg4 {[%clk 0:01:15]} 27. Rh4 {[%clk 0:00:06]}  Qe2 {[%clk 0:01:15]} 28. Rf1 {[%clk 0:00:05]}  Nc4 {[%clk 0:01:14]} 29. Bc3 {[%clk 0:00:05]}  Nd6 {[%clk 0:00:56]} 30. Qd1 {[%clk 0:00:04]}  Rxf2 {[%clk 0:00:50]} 31. Qxe2 {[%clk 0:00:03]}  Rxe2 {[%clk 0:00:51]} 32. Ne1 {[%clk 0:00:03]}  Raa2 {[%clk 0:00:42]} 33. d5 {[%clk 0:00:02]}  Ne7 {[%clk 0:00:41]} 34. Rhf4 {[%clk 0:00:02]}  h6 {[%clk 0:00:37]} 35. Rf8+ {[%clk 0:00:02]}  Kh7 {[%clk 0:00:37]} 36. R8f2 {[%clk 0:00:02]}  Rxf2 {[%clk 0:00:33]} 37. Rxf2 {[%clk 0:00:03]}  Rxf2 {[%clk 0:00:33]} 38. Kxf2 {[%clk 0:00:04]}  Nxd5 {[%clk 0:00:33]} 39. Bd4 {[%clk 0:00:04]}  g5 {[%clk 0:00:29]} 40. Be5 {[%clk 0:00:03]}  Nc4 {[%clk 0:00:28]} 41. Bd4 {[%clk 0:00:03]}  b6 {[%clk 0:00:27]} 42. Nc2 {[%clk 0:00:03]}  Kg6 {[%clk 0:00:26]} 43. Ke2 {[%clk 0:00:03]}  c5 {[%clk 0:00:26]} 44. Ba1 {[%clk 0:00:03]}  b5 {[%clk 0:00:26]} 45. h3 {[%clk 0:00:02]}  h5 {[%clk 0:00:25]} 46. g4 {[%clk 0:00:02]}  hxg4 {[%clk 0:00:22]} 47. hxg4 {[%clk 0:00:03]}  b4 {[%clk 0:00:22]} 48. Kd1 {[%clk 0:00:03]}  Ndxe3+ {[%clk 0:00:21]} 49. Nxe3 {[%clk 0:00:04]}  Nxe3+ {[%clk 0:00:22]} 0-1


[Site "https://www.chess.com"]

[Event "Titled Tuesday Blitz August 3 2021"]
[White "Ljukin, Sergei"]
[Black "Rusan, Paul-Cristian"]
[WhiteFideId "14102200"]
[BlackFideId "1209191"]
[WhiteElo "2309"]
[BlackElo "2167"]
[Result "1/2-1/2"]
[Round "09"]
[TimeControl "180+1"]
[Date "2021.08.03"]
[WhiteClock "0:00:30"]
[BlackClock "0:00:11"]

1. e4 {[%clk 0:03:00]}  c5 {[%clk 0:02:57]} 2. Nf3 {[%clk 0:03:00]}  Nc6 {[%clk 0:02:56]} 3. d4 {[%clk 0:03:00]}  cxd4 {[%clk 0:02:56]} 4. Nxd4 {[%clk 0:03:01]}  e5 {[%clk 0:02:56]} 5. Nb5 {[%clk 0:02:59]}  d6 {[%clk 0:02:56]} 6. N1c3 {[%clk 0:02:59]}  a6 {[%clk 0:02:56]} 7. Na3 {[%clk 0:02:59]}  b5 {[%clk 0:02:57]} 8. Nd5 {[%clk 0:02:59]}  Nf6 {[%clk 0:02:57]} 9. Bg5 {[%clk 0:02:59]}  Be7 {[%clk 0:02:58]} 10. Bxf6 {[%clk 0:02:59]}  Bxf6 {[%clk 0:02:58]} 11. c4 {[%clk 0:02:57]}  Bg5 {[%clk 0:02:57]} 12. cxb5 {[%clk 0:02:51]}  Nd4 {[%clk 0:02:56]} 13. b6 {[%clk 0:02:42]}  O-O {[%clk 0:02:56]} 14. Bc4 {[%clk 0:02:39]}  Bb7 {[%clk 0:02:55]} 15. O-O {[%clk 0:02:36]}  Kh8 {[%clk 0:02:54]} 16. Nc2 {[%clk 0:02:17]}  Rc8 {[%clk 0:02:50]} 17. b3 {[%clk 0:02:13]}  Nxc2 {[%clk 0:02:42]} 18. Qxc2 {[%clk 0:02:12]}  Bxd5 {[%clk 0:02:42]} 19. exd5 {[%clk 0:02:12]}  Qxb6 {[%clk 0:02:43]} 20. Qd3 {[%clk 0:02:07]}  a5 {[%clk 0:02:42]} 21. Rfb1 {[%clk 0:02:05]}  f5 {[%clk 0:02:40]} 22. Bb5 {[%clk 0:01:47]}  e4 {[%clk 0:02:28]} 23. Qe2 {[%clk 0:01:46]}  Bf6 {[%clk 0:02:20]} 24. Bc6 {[%clk 0:01:46]}  Rxc6 {[%clk 0:02:02]} 25. dxc6 {[%clk 0:01:45]}  d5 {[%clk 0:01:59]} 26. b4 {[%clk 0:01:12]}  axb4 {[%clk 0:01:50]} 27. Qc2 {[%clk 0:01:01]}  Rc8 {[%clk 0:01:41]} 28. Qb3 {[%clk 0:01:00]}  Qxc6 {[%clk 0:01:36]} 29. Qxb4 {[%clk 0:00:55]}  Bxa1 {[%clk 0:01:35]} 30. Rxa1 {[%clk 0:00:55]}  Qc1+ {[%clk 0:01:33]} 31. Qe1 {[%clk 0:00:55]}  Qxe1+ {[%clk 0:01:31]} 32. Rxe1 {[%clk 0:00:55]}  d4 {[%clk 0:01:25]} 33. Ra1 {[%clk 0:00:54]}  d3 {[%clk 0:01:24]} 34. Kf1 {[%clk 0:00:54]}  Kg8 {[%clk 0:00:43]} 35. a4 {[%clk 0:00:51]}  Kf7 {[%clk 0:00:35]} 36. a5 {[%clk 0:00:51]}  Ra8 {[%clk 0:00:21]} 37. a6 {[%clk 0:00:50]}  Ra7 {[%clk 0:00:21]} 38. Ke1 {[%clk 0:00:49]}  Ke6 {[%clk 0:00:21]} 39. Kd2 {[%clk 0:00:48]}  Kd6 {[%clk 0:00:17]} 40. h4 {[%clk 0:00:45]}  g6 {[%clk 0:00:17]} 41. g4 {[%clk 0:00:37]}  Kc6 {[%clk 0:00:10]} 42. gxf5 {[%clk 0:00:37]}  gxf5 {[%clk 0:00:11]} 43. Ra5 {[%clk 0:00:37]}  Kb6 {[%clk 0:00:09]} 44. Rxf5 {[%clk 0:00:36]}  Rxa6 {[%clk 0:00:10]} 45. Rf6+ {[%clk 0:00:31]}  Kb5 {[%clk 0:00:09]} 46. Rxa6 {[%clk 0:00:24]}  Kxa6 {[%clk 0:00:09]} 47. f3 {[%clk 0:00:25]}  exf3 {[%clk 0:00:08]} 48. Kxd3 {[%clk 0:00:25]}  Kb5 {[%clk 0:00:09]} 49. Ke3 {[%clk 0:00:25]}  Kc5 {[%clk 0:00:09]} 50. Kxf3 {[%clk 0:00:26]}  Kd5 {[%clk 0:00:09]} 51. Kf4 {[%clk 0:00:26]}  Ke6 {[%clk 0:00:08]} 52. Kg5 {[%clk 0:00:27]}  Kf7 {[%clk 0:00:09]} 53. Kh6 {[%clk 0:00:27]}  Kg8 {[%clk 0:00:09]} 54. Kg5 {[%clk 0:00:28]}  Kg7 {[%clk 0:00:09]} 55. h5 {[%clk 0:00:28]}  h6+ {[%clk 0:00:09]} 56. Kf5 {[%clk 0:00:28]}  Kf7 {[%clk 0:00:10]} 57. Ke5 {[%clk 0:00:28]}  Ke7 {[%clk 0:00:10]} 58. Kf5 {[%clk 0:00:29]}  Kf7 {[%clk 0:00:11]} 59. Ke5 {[%clk 0:00:29]}  Ke7 {[%clk 0:00:11]} 60. Kf5 {[%clk 0:00:30]}  Kf7 {[%clk 0:00:11]} 1/2-1/2


[Site "https://www.chess.com"]

[Event "Titled Tuesday Blitz August 3 2021"]
[White "Manukyan, Sargis A."]
[Black "Stribuk, Artiom"]
[WhiteFideId "13303970"]
[BlackFideId "13515659"]
[WhiteElo "2187"]
[BlackElo "2224"]
[Result "0-1"]
[Round "09"]
[TimeControl "180+1"]
[Date "2021.08.03"]
[WhiteClock "0:00:22"]
[BlackClock "0:00:36"]

1. d4 {[%clk 0:03:00]}  Nf6 {[%clk 0:02:59]} 2. c4 {[%clk 0:03:01]}  g6 {[%clk 0:03:00]} 3. Nc3 {[%clk 0:03:01]}  d5 {[%clk 0:03:00]} 4. Bf4 {[%clk 0:03:00]}  Bg7 {[%clk 0:02:58]} 5. e3 {[%clk 0:02:57]}  O-O {[%clk 0:02:58]} 6. Rc1 {[%clk 0:02:57]}  Be6 {[%clk 0:02:52]} 7. Nf3 {[%clk 0:02:55]}  dxc4 {[%clk 0:02:42]} 8. Ng5 {[%clk 0:02:54]}  Bd5 {[%clk 0:02:43]} 9. e4 {[%clk 0:02:53]}  h6 {[%clk 0:02:43]} 10. exd5 {[%clk 0:02:49]}  hxg5 {[%clk 0:02:42]} 11. Bxg5 {[%clk 0:02:48]}  Nxd5 {[%clk 0:02:42]} 12. Bxc4 {[%clk 0:02:48]}  Nb6 {[%clk 0:02:20]} 13. Bb3 {[%clk 0:02:44]}  Qxd4 {[%clk 0:02:17]} 14. O-O {[%clk 0:02:34]}  Qxd1 {[%clk 0:02:09]} 15. Rfxd1 {[%clk 0:02:35]}  Nc6 {[%clk 0:02:09]} 16. a4 {[%clk 0:02:18]}  e6 {[%clk 0:02:00]} 17. Bf4 {[%clk 0:02:13]}  Rac8 {[%clk 0:01:42]} 18. Rd2 {[%clk 0:02:08]}  Nd4 {[%clk 0:01:36]} 19. Ba2 {[%clk 0:02:02]}  c5 {[%clk 0:01:32]} 20. a5 {[%clk 0:01:51]}  Nd7 {[%clk 0:01:32]} 21. Ne4 {[%clk 0:01:47]}  Rc6 {[%clk 0:01:23]} 22. Bc4 {[%clk 0:01:35]}  b5 {[%clk 0:01:07]} 23. axb6 {[%clk 0:01:35]}  Nxb6 {[%clk 0:01:06]} 24. Bf1 {[%clk 0:01:32]}  Nb3 {[%clk 0:01:00]} 25. Bb5 {[%clk 0:01:11]}  Rcc8 {[%clk 0:00:52]} 26. Rdc2 {[%clk 0:01:08]}  Nxc1 {[%clk 0:00:51]} 27. Bxc1 {[%clk 0:01:07]}  Rfd8 {[%clk 0:00:51]} 28. f3 {[%clk 0:01:06]}  Rd1+ {[%clk 0:00:49]} 29. Kf2 {[%clk 0:01:06]}  Bd4+ {[%clk 0:00:50]} 30. Kg3 {[%clk 0:01:02]}  Nd5 {[%clk 0:00:46]} 31. Bd2 {[%clk 0:00:55]}  Rb8 {[%clk 0:00:45]} 32. Bc4 {[%clk 0:00:54]}  Rxb2 {[%clk 0:00:43]} 33. Rxb2 {[%clk 0:00:51]}  Bxb2 {[%clk 0:00:44]} 34. Ba5 {[%clk 0:00:43]}  Be5+ {[%clk 0:00:43]} 35. Kh3 {[%clk 0:00:40]}  Nf4+ {[%clk 0:00:43]} 36. Kg3 {[%clk 0:00:32]}  Rg1 {[%clk 0:00:42]} 37. Kf2 {[%clk 0:00:23]}  Rxg2+ {[%clk 0:00:42]} 38. Ke3 {[%clk 0:00:23]}  Bd4+ {[%clk 0:00:35]} 39. Kxf4 {[%clk 0:00:22]}  e5# {[%clk 0:00:36]} 0-1


[Site "https://www.chess.com"]

[Event "Titled Tuesday Blitz August 3 2021"]
[White "Mekhitarian, Krikor Sevag"]
[Black "Boraso, Alessio"]
[WhiteFideId "2107660"]
[BlackFideId "848077"]
[WhiteElo "2598"]
[BlackElo "2277"]
[Result "1-0"]
[Round "09"]
[TimeControl "180+1"]
[Date "2021.08.03"]
[WhiteClock "0:00:07"]
[BlackClock "0:00:02"]

1. e4 {[%clk 0:03:00]}  c5 {[%clk 0:02:55]} 2. Nf3 {[%clk 0:02:58]}  Nc6 {[%clk 0:02:56]} 3. Bb5 {[%clk 0:02:41]}  Nf6 {[%clk 0:02:53]} 4. Nc3 {[%clk 0:02:40]}  g6 {[%clk 0:02:52]} 5. O-O {[%clk 0:02:35]}  Bg7 {[%clk 0:02:50]} 6. e5 {[%clk 0:02:33]}  Ng4 {[%clk 0:02:48]} 7. Bxc6 {[%clk 0:02:26]}  dxc6 {[%clk 0:02:49]} 8. Re1 {[%clk 0:02:25]}  O-O {[%clk 0:02:43]} 9. h3 {[%clk 0:02:19]}  Nh6 {[%clk 0:02:44]} 10. a4 {[%clk 0:02:17]}  Nf5 {[%clk 0:02:42]} 11. a5 {[%clk 0:02:15]}  Nd4 {[%clk 0:02:36]} 12. d3 {[%clk 0:02:15]}  Be6 {[%clk 0:02:31]} 13. Ng5 {[%clk 0:01:58]}  Qd7 {[%clk 0:02:21]} 14. Na4 {[%clk 0:01:43]}  c4 {[%clk 0:01:57]} 15. Nc5 {[%clk 0:01:40]}  Qd5 {[%clk 0:01:56]} 16. Ncxe6 {[%clk 0:01:27]}  Nxe6 {[%clk 0:01:54]} 17. dxc4 {[%clk 0:01:22]}  Qxc4 {[%clk 0:01:43]} 18. b3 {[%clk 0:01:13]}  Qd5 {[%clk 0:01:27]} 19. Qxd5 {[%clk 0:01:08]}  cxd5 {[%clk 0:01:28]} 20. Nxe6 {[%clk 0:01:08]}  fxe6 {[%clk 0:01:28]} 21. f4 {[%clk 0:01:07]}  Rac8 {[%clk 0:01:26]} 22. Ra2 {[%clk 0:01:04]}  Bh6 {[%clk 0:01:08]} 23. g3 {[%clk 0:01:04]}  Rc3 {[%clk 0:01:08]} 24. Kg2 {[%clk 0:01:01]}  Rfc8 {[%clk 0:01:09]} 25. Re2 {[%clk 0:01:01]}  d4 {[%clk 0:01:03]} 26. Ba3 {[%clk 0:00:40]}  d3 {[%clk 0:00:58]} 27. cxd3 {[%clk 0:00:39]}  Rxd3 {[%clk 0:00:59]} 28. Bb4 {[%clk 0:00:30]}  Rxb3 {[%clk 0:00:57]} 29. Rab2 {[%clk 0:00:29]}  Rxb2 {[%clk 0:00:46]} 30. Rxb2 {[%clk 0:00:29]}  g5 {[%clk 0:00:47]} 31. fxg5 {[%clk 0:00:26]}  Bxg5 {[%clk 0:00:46]} 32. h4 {[%clk 0:00:27]}  Be3 {[%clk 0:00:45]} 33. Bxe7 {[%clk 0:00:22]}  b6 {[%clk 0:00:43]} 34. axb6 {[%clk 0:00:20]}  axb6 {[%clk 0:00:44]} 35. Bd6 {[%clk 0:00:15]}  Bc5 {[%clk 0:00:38]} 36. Rc2 {[%clk 0:00:12]}  Rd8 {[%clk 0:00:26]} 37. Bxc5 {[%clk 0:00:11]}  Rc8 {[%clk 0:00:27]} 38. Rb2 {[%clk 0:00:10]}  Rxc5 {[%clk 0:00:26]} 39. Rxb6 {[%clk 0:00:08]}  Rxe5 {[%clk 0:00:26]} 40. Kf3 {[%clk 0:00:09]}  h5 {[%clk 0:00:22]} 41. Kf4 {[%clk 0:00:08]}  Rf5+ {[%clk 0:00:21]} 42. Ke4 {[%clk 0:00:09]}  Rf6 {[%clk 0:00:22]} 43. Ke5 {[%clk 0:00:09]}  Rg6 {[%clk 0:00:21]} 44. Rb3 {[%clk 0:00:05]}  Kg7 {[%clk 0:00:20]} 45. Rf3 {[%clk 0:00:05]}  Kg8 {[%clk 0:00:14]} 46. Kd6 {[%clk 0:00:04]}  Kg7 {[%clk 0:00:13]} 47. Ra3 {[%clk 0:00:04]}  Kf6 {[%clk 0:00:11]} 48. Rf3+ {[%clk 0:00:03]}  Kg7 {[%clk 0:00:11]} 49. Ke5 {[%clk 0:00:03]}  Rg4 {[%clk 0:00:08]} 50. Kxe6 {[%clk 0:00:03]}  Kg6 {[%clk 0:00:06]} 51. Ke5 {[%clk 0:00:03]}  Ra4 {[%clk 0:00:05]} 52. Kd5 {[%clk 0:00:03]}  Ra5+ {[%clk 0:00:04]} 53. Ke4 {[%clk 0:00:04]}  Rb5 {[%clk 0:00:04]} 54. Rd3 {[%clk 0:00:03]}  Rb4+ {[%clk 0:00:04]} 55. Kf3 {[%clk 0:00:03]}  Rb6 {[%clk 0:00:03]} 56. Kf4 {[%clk 0:00:04]}  Rf6+ {[%clk 0:00:04]} 57. Ke5 {[%clk 0:00:04]}  Rf5+ {[%clk 0:00:03]} 58. Ke4 {[%clk 0:00:04]}  Rf6 {[%clk 0:00:04]} 59. Rd5 {[%clk 0:00:04]}  Ra6 {[%clk 0:00:03]} 60. Rg5+ {[%clk 0:00:03]}  Kh6 {[%clk 0:00:04]} 61. Re5 {[%clk 0:00:03]}  Ra4+ {[%clk 0:00:04]} 62. Kf5 {[%clk 0:00:04]}  Ra6 {[%clk 0:00:03]} 63. Re6+ {[%clk 0:00:04]}  Rxe6 {[%clk 0:00:01]} 64. Kxe6 {[%clk 0:00:05]}  Kg6 {[%clk 0:00:02]} 65. Ke5 {[%clk 0:00:06]}  Kg7 {[%clk 0:00:01]} 66. Kf5 {[%clk 0:00:06]}  Kf7 {[%clk 0:00:01]} 67. Kg5 {[%clk 0:00:07]}  Ke6 {[%clk 0:00:02]} 68. Kxh5 {[%clk 0:00:07]} 1-0


[Site "https://www.chess.com"]